Workbook

Sheet Overall
A1: 2012-13 Champa Mahila Society Overall Budget
A3: Subproject | B3: 2012-13 Request | C3: 2011-12 Funding
A4: Sarada Balika Bidyamandir (SBB) | B4: =SBB!E21 -> 860104 | C4: =SBB!E23 -> 881104
A5: Surendra Smriti Bidyaniketan (SSB) | B5: =SSB!E21 -> 1088020 | C5: =SSB!E23 -> 1085020
A6: Champabati Seva Sadan (Health) | B6: =Health!E16 -> 190700 | C6: =Health!E18 -> 178040
A7: Early Childhood/Non-Formal Education Centers (ECE/NFE) | B7: =ECE!E25 -> 1082150 | C7: =ECE!E27 -> 1081400
A8: Boys' and Girls' Home | B8: ='Boys and Girls Home'!E56 -> 416960 | C8: ='Boys and Girls Home'!E60 -> 410700
A9: Special Children | B9: ='Special Children'!F20 -> 196000 | C9: ='Special Children'!F22 -> 185900
A10: Total | B10: =SUM(B4:B9) -> 3833934 | C10: =SUM(C4:C9) -> 3822164

Sheet SBB
A1: SBB Budget 2012-2013
A3: Item | B3: # of Unit | C3: Amount / Unit (Rs) | D3: Time (month) | E3: Total Amount
A4: Head Teacher'sSalary | B4: 1 | C4: 1700 | D4: 12 | E4: =B4*C4*D4 -> 20400
A5: Teacher salary | B5: 9 | C5: 1600 | D5: 12 | E5: =B5*C5*D5 -> 172800
A6: Staff salary | B6: 1 | C6: 1100 | D6: 12 | E6: =B6*C6*D6 -> 13200
A7: Cook | B7: 2 | C7: 800 | D7: 12 | E7: =B7*C7*D7 -> 19200
A8: TLM | B8: 10 | C8: 25 | D8: 12 | E8: =B8*C8*D8 -> 3000
A9: Education material | B9: 200 | C9: 460 | E9: =B9*C9 -> 92000
A10: Dress | B10: 200 | C10: 220 | E10: =B10*C10 -> 44000
A11: Meal | B11: 213 | C11: =8*276/12 -> 184 | D11: 12 | E11: =B11*C11*D11 -> 470304
A12: Medicine | C12: 400 | D12: 12 | E12: =C12*D12 -> 4800
A13: Sanitation | C13: 3000 | E13: =C13 -> 3000
A14: Sports, Annual program | C14: 7000 | E14: =C14 -> 7000
A15: Teacher's Orientation Training | C15: 2900 | E15: 2900
A16: Documentary, Office Expence Printing Stationary | C16: 2150 | E16: 2150
A17: News Paper | C17: 1500 | E17: 1500
A18: Social awareness & observation days | C18: 6000 | E18: 6000
A19: Repair & Maintainance for School Building | C19: 18200 | E19: 18200
A20: Local contibution Rs. 2 per child per month & guardians' contibution | E20: 20350
A21: Total | E21: =SUM(E4:E19) - E20 -> 860104
A23: 2011-12 Amount from Asha | E23: 881104

Sheet SSB
A1: SSB Budget 2012-2013
A3: Item | B3: # of Unit | C3: Amount / Unit (Rs) | D3: Time (month) | E3: Total Amount | F3: comments
A4: Head Teacher'sSalary | B4: 1 | C4: 1700 | D4: 12 | E4: =B4*C4*D4 -> 20400
A5: Teacher salary | B5: 10 | C5: 1600 | D5: 12 | E5: =B5*C5*D5 -> 192000
A6: Staff salary | B6: 1 | C6: 1100 | D6: 12 | E6: =B6*C6*D6 -> 13200
A7: Cook | B7: 3 | C7: 800 | D7: 12 | E7: =B7*C7*D7 -> 28800
A8: TLM | B8: 11 | C8: 25 | D8: 12 | E8: =B8*C8*D8 -> 3300
A9: Education material | B9: 300 | C9: 225 | E9: =B9*C9 -> 67500
A10: Dress | B10: 300 | C10: 180 | E10: =B10*C10 -> 54000
A11: Meal | B11: 315 | C11: =8*276/12 -> 184 | D11: 12 | E11: =B11*C11*D11 -> 695520
A12: Medicine | C12: 400 | D12: 12 | E12: =C12*D12 -> 4800
A13: Sanitation | C13: 3000 | E13: =C13 -> 3000
A14: Sports, Annual program | C14: 6000 | E14: =C14 -> 6000
A15: Teacher's Orientation Training | C15: 3000 | E15: =C15 -> 3000
A16: Documentary, Office Expence Printing Stationary | C16: 2200 | E16: 2200
A17: News Paper | C17: 1500 | E17: 1500
A18: Social awareness & observation days | C18: 6000 | E18: 6000
A19: Repair & Maintainance for School Building | C19: 12000 | E19: 12000
A20: Local contibution Rs. 2 per child per month & guardians' contibution | E20: 25200
A21: Total | E21: =SUM(E4:E19)-E20 -> 1088020
A23: 2011-12 Amount from Asha | E23: 1085020

Sheet Health
B1: CHAMPABATI SEVA SADAN
B2: Health Budget 2012-2013
A3: A. Hospital | B3: Unit | C3: Rate/Unit | D3: per month | E3: per year
A4: doctor | B4: 1 | C4: 9000 | D4: =B4*C4 -> 9000 | E4: =D4*12 -> 108000
A5: nurse(full time) | B5: 2 | C5: 1400 | D5: =B5*C5 -> 2800 | E5: =D5*12 -> 33600
A6: nurse (part time) | B6: 1 | C6: 600 | D6: =B6*C6 -> 600 | E6: =D6*12 -> 7200
A7: aya | B7: 2 | C7: 800 | D7: =B7*C7 -> 1600 | E7: 19200
A8: superintendent | B8: 1 | C8: 1500 | D8: =B8*C8 -> 1500 | E8: 18000
A9: medicine | C9: 6500 | D9: =C9 -> 6500 | E9: 78000
A10: travelling (staff) | C10: 300 | D10: =C10 -> 300 | E10: 3600
A11: travelling (doctor) | C11: 1000 | D11: =C11 -> 1000 | E11: 12000
A12: contingency | C12: 200 | D12: =C12 -> 200 | E12: 2400
A13: Instrument | E13: 35000
A14: Total | E14: =SUM(E4:E13) -> 317000
A15: Income from hospital (Patient fees, Operation Charge, Ambulance Service. ) | E15: 126300
A16: Asking from Asha | E16: =E14-E15 -> 190700
A18: 2011-12 Amount from Asha | E18: 178040

Sheet ECE
B1: ECE Budget 2012 -2013
A2: Item | B2: # of Unit | C2: Amount / Unit (RS | D2: Time (month) | E2: Total Amount
A3: Teacher Salary | B3: 1 | C3: 400 | D3: 12 | E3: =B3*C3*D3 -> 4800
A4: Education material | B4: 25 | C4: 60 | E4: =B4*C4 -> 1500
A5: Food | B5: 25 | C5: 48 | D5: 12 | E5: =B5*C5*D5 -> 14400
A6: Medicine | B6: 1 | C6: 50 | D6: 12 | E6: =B6*C6*D6 -> 600
A7: Contingency | B7: 1 | C7: 400 | E7: =B7*C7 -> 400
A8: Cluster wise Sports for N.F.E. Students | B8: 1 | C8: 375 | E8: =B8*C8 -> 375
A9: Training of N.F. E Teachers with T . L.M 50 Heads X 2 days X @ Rs. 70 Per day for Meal & Tiffin. Twice in a year & Training cost (Rs. 7400) | B9: 1 | C9: 428 | E9: =B9*C9 -> 428
A10: Total per 1 ECE center | E10: =SUM(E3:E9) -> 22503
A13: ECE expenses | B13: 50 | C13: =E10 -> 22503 | E13: =B13*C13 -> 1125150
A14: Supervisor+leader | B14: 1 | C14: 700 | D14: 12 | E14: =B14*C14*D14 -> 8400
A15: Supervisor | B15: 3 | C15: 600 | D15: 12 | E15: =B15*C15*D15 -> 21600
A16: Office Expenses | E16: 3000
A17: Travel | E17: 4000
A18: Total | E18: =SUM(E13:E17) -> 1162150
A20: 1) Collection from children | B20: 1250 | C20: 2 | D20: 12 | E20: =B20*C20*D20 -> 30000
A21: 2) Salary by CMS | C21: 3000 | D21: 12 | E21: =C21*D21 -> 36000
A22: 3) Local contribution | E22: 14000
A23: Total | E23: =SUM(E20:E22) -> 80000
A25: Asking from Asha | E25: =E18-E23 -> 1082150
A27: 2011-12 Amount from Asha | E27: 1081400

Sheet Boys and Girls Home
A1: Boys' Home/Girls' Home Budget 2012-2013
A3: Item | B3: # of Unit | C3: Amount / Unit (Rs) | D3: Total Amount
A4: Supervisor (BH) | B4: 1 | C4: 1500 | D4: =B4*C4 -> 1500
A5: Cook (BH) | B5: 5 | C5: 1000 | D5: =B5*C5 -> 5000
A6: Tutor (BH)
A7: full time | B7: 2 | C7: 1200 | D7: =B7*C7 -> 2400
A8: part time | B8: 1 | C8: 800 | D8: =B8*C8 -> 800
A9: part time | B9: 5 | C9: 600 | D9: =B9*C9 -> 3000
A10: Cultural trainer (Bh + GH) | B10: 1 | C10: 1000 | D10: =B10*C10 -> 1000
A11: Total salary per month (BH) | D11: =SUM(D4:D10) -> 13700
A13: Supervisor (GH) | B13: 1 | C13: 1500 | D13: =B13*C13 -> 1500
A14: House mother (GH) | B14: 1 | C14: 1200 | D14: =B14*C14 -> 1200
A15: Cook (GH) | B15: 4 | C15: 1000 | D15: =B15*C15 -> 4000
A16: Tutor (GH)
A17: full time | B17: 1 | C17: 1200 | D17: =B17*C17 -> 1200
A18: part time | B18: 2 | C18: 800 | D18: =B18*C18 -> 1600
A19: part time | B19: 4 | C19: 600 | D19: =B19*C19 -> 2400
A20: Total salary per month (GH) | D20: =SUM(D13:D19) -> 11900
A22: Food for children | B22: 365 | C22: 32 | D22: =B22*C22 -> 11680 | F22: =D22*400 -> 4672000
A23: Clothing | C23: 350 | D23: =C23 -> 350 | F23: 140000
A24: Medicines | C24: 200 | D24: =C24 -> 200 | F24: 80000
A25: Toiletries | C25: 125 | D25: =C25 -> 125 | F25: 50000
A26: Bedding | C26: 200 | D26: =C26 -> 200 | F26: 80000
A27: Total per child | D27: =SUM(D22:D26) -> 12555 | F27: =D27*400 -> 5022000
A29: Sports | D29: 8000
A30: Sports equipment | D30: 5000
A31: Cultural function | D31: 8400
A32: Awareness program | D32: 6200
A33: Office stationery and printing paper | D33: 5000
A34: Building maintenance | D34: 26000
A35: Total (other) | D35: =SUM(D29:D34) -> 58600
B37: # of Unit | C37: Amount / Unit (Rs) | D37: Time (month) | E37: Total Amount
A38: Salaries (BH) | C38: =D11 -> 13700 | D38: 12 | E38: =C38*D38 -> 164400
A39: Salaries (GH) | C39: =D20 -> 11900 | D39: 12 | E39: =C39*D39 -> 142800
A40: Children's upbringing (BH) | B40: 200 | C40: =$D$27 -> 12555 | E40: =B40*C40 -> 2511000
A41: Childrens upbringing (GH) | B41: 200 | C41: =$D$27 -> 12555 | E41: =B41*C41 -> 2511000
A42: Other | E42: =D35 -> 58600
A43: Total (BH) | E43: =E38+E40+E42 -> 2734000
A44: Total (GH) | E44: =E39+E41 -> 2653800
A45: Total | E45: =SUM(E38:E42) -> 5387800
A47: Govt funding (BH) | B47: =B40 -> 200 | C47: 990 | D47: 12 | E47: =B47*C47*D47 -> 2376000
A48: Govt funding (GH) | B48: =B41 -> 200 | C48: 990 | D48: 12 | E48: =B48*C48*D48 -> 2376000
A49: Vegetable garden | C49: 90840 | E49: =C49 -> 90840
A50: Other sources | C50: 128000 | E50: =C50 -> 128000
A51: Total (BH) | E51: =E47+E49/2+E50/2 -> 2485420
A52: Total (GH) | E52: =E48+E49/2+E50/2 -> 2485420
A53: Total | E53: =SUM(E47:E50) -> 4970840
A56: Asking from Asha | E56: =E45-E53 -> 416960
A57: Boys' home only | E57: =E43-E51 -> 248580
A58: Girls' home only | E58: =E44-E52 -> 168380
A60: 2011-12 amount from Asha | E60: 410700

Sheet Special Children
A1: Budget for 18 Special Children (All Residential) 2012-2013
A3: A | B3: Items | C3: Unit/No.s | D3: Expense per unit | E3: Expense per month | F3: Expense per year
A4: 1 | B4: Supervisor | C4: 1 | D4: 700 | E4: =D4*C4 -> 700 | F4: =E4*12 -> 8400
A5: =A4+1 -> 2 | B5: Teacher | C5: 1 | D5: 600 | E5: =D5*C5 -> 600 | F5: =E5*12 -> 7200
A6: 3 | B6: Cook salary with home | C6: 1 | D6: 0 | E6: =D6*C6 -> 0 | F6: =E6*12 -> 0
A7: 4 | B7: Food | C7: 18 | D7: 700 | E7: =D7*C7 -> 12600 | F7: =E7*12 -> 151200
A8: 5 | B8: Education | C8: =C9 -> 18 | D8: 300 | F8: =C8*D8 -> 5400
A9: 6 | B9: Clothing | C9: =C7 -> 18 | D9: 400 | F9: =C9*D9 -> 7200
A10: 7 | B10: Toiletries | C10: =C8 -> 18 | D10: 100 | F10: =C10*D10 -> 1800
A11: 8 | B11: Bedding | C11: =C10 -> 18 | D11: 200 | F11: =C11*D11 -> 3600
A12: 9 | B12: Sports program | C12: 1 | D12: 2200 | F12: =C12*D12 -> 2200
B13: Total (A) | F13: =SUM(F4:F12) -> 187000
A15: B | B15: Vocational training for 2012-2013
A16: 1 | B16: Trainer's salary | E16: 1500 | F16: =E16*6 -> 9000
A17: =A16+1 -> 2 | B17: Computer | F17: 0
B18: Total (B) | F18: =SUM(F16:F17) -> 9000
B20: Asking from Asha | F20: =F18+F13 -> 196000
B22: 2011-12 Amount | F22: 185900
